fUSD/lending_fUSD_20251012
["ID","MTS","AMOUNT","RATE_DAILY","PERIOD"]
[391086010,1760311842501,-151.0,0.00029269,30]
[391086012,1760311842511,-24638.1399384,0.00029269,3]
[391086014,1760311842520,-62817.9350761,0.00029272,3]
[391086016,1760311842529,-14783.7534387,0.00029272,3]
[391086018,1760311842855,-1132.15016645,0.00029272,3]
[391086021,1760311845831,-699.28455087,0.00022367,2]
[391086022,1760311845841,-600.85916401,0.00025692,2]
[391086023,1760311845852,-1944.14083599,0.00025692,2]
[391086024,1760311845862,-1032.379,0.00028692,2]
[391086025,1760311845871,-267.91356471,0.00029269,2]
[391086026,1760311845881,-151.0,0.00029269,2]
[391086027,1760311845891,-2164.56660378,0.00029272,3]
[391086033,1760311866567,2000.0,0.00026,120]
[391086034,1760311867250,2000.0,0.00023637,120]
[391086035,1760311867307,2000.0,0.00023996,120]
[391086036,1760311867366,2000.0,0.00023996,120]
[391086037,1760311867423,2000.0,0.00023996,120]
[391086038,1760311930651,2000.0,0.00026,120]
[391086042,1760312206669,1600.0,0.00025875,120]
[391086043,1760312215277,-177.90627569,0.000163,2]
[391086044,1760312215304,-177.90627569,0.000165,2]
[391086045,1760312215331,-177.90627569,0.000166,2]
[391086046,1760312215356,-166.28117293,0.000168,2]
[391086047,1760312253924,-11.62510276,0.000168,2]
[391086048,1760312253951,-1988.37489724,0.0001685,2]
[391086049,1760312264304,2585.04,0.0002739,120]
[391086050,1760312396564,-511.62510276,0.0001685,2]
[391086051,1760312396590,-195.0,0.00016863,2]
[391086052,1760312396616,-300.0,0.00016875,2]
[391086053,1760312396644,-195.0,0.000169,2]
[391086054,1760312396669,-342.11923711,0.000169,2]
[391086055,1760312396694,-177.90627569,0.00017,2]
[391086056,1760312396720,-195.0,0.00017015,2]
[391086057,1760312396745,-167.97270581,0.00017349,2]
[391086058,1760312396771,-300.0,0.00017449,2]
[391086059,1760312396798,-415.37667863,0.00017449,2]
[391086063,1760312873761,3815.09,0.00011774,2]
[391086064,1760312873984,3815.09,0.00012393,2]
[391086065,1760312881150,-258.2595874,0.00013013,2]
[391086066,1760312884805,-246.0,0.00013013,2]
[391086067,1760312886935,-302.0,0.00013013,2]
[391086068,1760312889975,-195.0,0.00013013,2]
[391086069,1760312893252,-475.0,0.00013013,2]
[391086070,1760312895414,-500.0,0.00013013,2]
[391086071,1760312911363,-244.9518476,0.00013013,2]
[391086072,1760312914920,-160.39880836,0.00013013,2]
[391086073,1760312916986,2500.0,0.00027397,120]
[391086074,1760312919155,-388.16627981,0.00013013,2]
[391086075,1760312920869,-225.8557453,0.00013013,2]
[391086076,1760312923490,-312.22403332,0.00013013,2]
[391086077,1760312927491,-177.12372833,0.00013013,2]
[391086083,1760313032000,-330.10996988,0.00013013,2]
[391086084,1760313032010,-1712.980414,0.0001363,2]
[391086085,1760313032021,-3815.09,0.00013633,2]
[391086086,1760313032031,-336.59,0.00013699,2]
[391086087,1760313032040,-300.0,0.00014251,2]
[391086088,1760313032051,-300.0,0.00014251,2]
[391086089,1760313032061,-1200.0,0.00014251,2]
[391086090,1760313032070,-300.0,0.00014251,2]
[391086091,1760313032081,-3815.09,0.00014252,2]
[391086092,1760313032090,-195.0,0.00014314,2]
[391086093,1760313032100,-177.12521743,0.00014314,2]
[391086094,1760313032109,-195.0,0.00014314,2]
[391086095,1760313032118,-300.0,0.00014314,2]
[391086096,1760313032128,-306.73819265,0.00014314,2]
[391086097,1760313032136,-383.42224889,0.00014314,2]
[391086098,1760313032146,-271.44772187,0.00014314,2]
[391086099,1760313032155,-3815.09,0.00014872,2]
[391086101,1760313032164,-802.0,0.00015,2]
[391086103,1760313032174,-191.24314008,0.00015068,2]
[391086104,1760313032186,-3.75685992,0.00015068,2]
[391086105,1760313032195,-296.24314008,0.00015068,2]
[391086106,1760313032348,-3.75685992,0.00015068,2]
[391086107,1760313032358,-195.0,0.00015349,2]
[391086108,1760313032368,-3815.09,0.00015492,2]
[391086109,1760313032378,-420.0,0.00015609,2]
[391086110,1760313032387,-420.0,0.00015609,2]
[391086111,1760313032397,-1680.0,0.00015676,2]
[391086113,1760313032407,-3815.09,0.00016111,2]
[391086115,1760313032416,-3815.09,0.00016731,2]
[391086117,1760313032425,-151.0,0.00017,2]
[391086119,1760313032436,-239.55079016,0.00017,2]
[391086120,1760313032445,-587.0,0.00017096,2]
[391086121,1760313032454,-262.7369,0.0001715,2]
[391086122,1760313032464,-239.55079016,0.000172,2]
[391086123,1760313032474,-239.55079016,0.000173,2]
[391086124,1760313032483,-3815.09,0.00017351,2]
[391086125,1760313032493,-151.0,0.000175,2]
[391086126,1760313032502,-239.55079016,0.000175,2]
[391086127,1760313032511,-1033.0,0.00017699,2]
[391086128,1760313032522,-239.55079016,0.000177,2]
[391086129,1760313032533,-3815.09,0.0001797,2]
[391086130,1760313032543,-151.0,0.00018,2]
[391086131,1760313032554,-850.0,0.0001815,2]
[391086132,1760313032563,-151.0,0.000185,2]
[391086133,1760313032573,-365.2159806,0.0001859,2]
[391086134,1760313032586,-3449.8740194,0.0001859,2]
[391086135,1760313032596,-195.0,0.000187,2]
[391086136,1760313032607,-823.0,0.00018725,2]
[391086137,1760313032617,-250.0,0.00018958,2]
[391086138,1760313032627,-3815.09,0.0001921,2]
[391086139,1760313032639,-1397.0,0.00019221,2]
[391086140,1760313032648,-150.0,0.00019614,2]
[391086141,1760313032658,-3815.09,0.00019829,2]
[391086142,1760313032667,-1908.99,0.00020145,2]
[391086143,1760313032677,-2500.0,0.00020145,2]
[391086144,1760313032687,-517.90582666,0.0002015,2]
[391086145,1760313032696,-336.59,0.00020187,2]
[391086146,1760313032707,-366.14,0.00020381,2]
[391086147,1760313032717,-3240.17342444,0.00020449,2]
[391086148,1760313032731,-574.91657556,0.00020449,2]
[391086149,1760313032740,-764.0,0.00020509,2]
[391086150,1760313032750,-3544.64123062,0.00021069,2]
[391086151,1760313032767,-270.44876938,0.00021069,2]
[391086152,1760313032776,-3815.09,0.00021688,2]
[391086153,1760313032786,-499.99,0.00021757,2]
[391086154,1760313032796,-150.99,0.00021757,2]
[391086155,1760313032807,-153.0,0.00021871,2]
[391086156,1760313032817,-153.0,0.00021871,2]
[391086157,1760313032827,-153.0,0.00021872,2]
[391086158,1760313032836,-153.0,0.00021872,2]
[391086159,1760313032845,-153.0,0.00021885,2]
[391086160,1760313032854,-153.0,0.00021885,2]
[391086161,1760313032863,-153.0,0.00021887,2]
[391086162,1760313032872,-153.0,0.00021887,2]
[391086163,1760313032882,-200.0,0.00021887,2]
[391086164,1760313032891,-201.6366141,0.00021887,2]
[391086165,1760313032900,-153.0,0.00021899,2]
[391086166,1760313032909,-153.0,0.00021899,2]
[391086167,1760313032918,-153.0,0.00021901,2]
[391086168,1760313032927,-153.0,0.00021901,2]
[391086169,1760313032936,-153.0,0.00021914,2]
[391086170,1760313032945,-153.0,0.00021914,2]
[391086171,1760313032954,-153.0,0.00021915,2]
[391086172,1760313032963,-12030.0,0.000222,2]
[391086173,1760313032973,-3815.09,0.00022308,2]
[391086174,1760313032986,-200.0,0.00022435,2]
[391086175,1760313032996,-5513.0,0.000227,3]
[391086176,1760313033005,-3815.09,0.00022928,2]
[391086177,1760313033015,-203.05725991,0.00022983,2]
[391086178,1760313033026,-5513.0,0.000233,5]
[391086179,1760313033036,-3815.09,0.00023547,2]
[391086180,1760313033047,-475.28169836,0.00023578,2]
[391086181,1760313033064,-5000.0,0.00023861,2]
[391086182,1760313033074,-500.0,0.00023967,2]
[391086183,1760313033083,-500.0,0.00023967,2]
[391086184,1760313033093,-725.792,0.00024018,5]
[391086185,1760313033103,-506.0,0.00024397,2]
[391086186,1760313033112,-8070.93,0.00024451,2]
[391086187,1760313033121,-500.0,0.00024515,2]
[391086188,1760313033131,-1000.0,0.00024658,2]
[391086189,1760313033140,-500.0,0.00024723,2]
[391086190,1760313033149,-500.0,0.00024723,2]
[391086191,1760313033158,-500.0,0.00024723,2]
[391086192,1760313033167,-500.0,0.00024723,2]
[391086193,1760313033176,-500.0,0.00024723,2]
[391086194,1760313033187,-9211.34798985,0.00024723,2]
[391086195,1760313033197,-1000.0,0.00024723,2]
[391086196,1760313033206,-500.0,0.00024723,2]
[391086197,1760313033215,-1000.0,0.00024723,2]
[391086198,1760313033225,-500.0,0.00024723,2]
[391086199,1760313033234,-1000.0,0.00024723,2]
[391086200,1760313033243,-500.0,0.00024723,2]
[391086201,1760313033254,-1000.0,0.00024723,2]
[391086202,1760313033263,-500.0,0.00024723,2]
[391086203,1760313033274,-1000.0,0.00024723,2]
[391086204,1760313033285,-500.0,0.00024723,2]
[391086205,1760313033295,-1000.0,0.00024723,2]
[391086206,1760313033305,-500.0,0.00024723,2]
[391086207,1760313033316,-1000.0,0.00024723,2]
[391086208,1760313033325,-500.0,0.00024723,2]
[391086209,1760313033337,-1000.0,0.00024723,2]
[391086210,1760313033347,-111.9259078,0.00024723,2]
[391086211,1760313033359,-888.0740922,0.00024723,2]
[391086212,1760313033368,-1000.0,0.00024723,2]
[391086213,1760313033379,-1000.0,0.00024723,2]
[391086214,1760313033388,-322.6107,0.00024723,2]
[391086215,1760313033398,-227.48174848,0.00024723,2]
[391086216,1760313033409,-1000.0,0.00024723,2]
[391086217,1760313033418,-248.71531821,0.00024723,2]
[391086218,1760313033427,-622.73341373,0.00024723,2]
[391086219,1760313033438,-472.46676082,0.00024778,2]
[391086220,1760313033449,-500.0,0.00024957,2]
[391086221,1760313033459,-151.0,0.00025,2]
[391086222,1760313033470,-150.0,0.00025041,2]
[391086223,1760313033481,-2358.57,0.0002512,2]
[391086224,1760313033491,-1000.0,0.00025584,2]
[391086225,1760313033900,-1175.21,0.00025598,2]
[391086226,1760313033912,-686.02,0.00025697,2]
[391086227,1760313033922,-500.0,0.00025702,7]
[391086228,1760313033933,-4000.0,0.00025757,2]
[391086229,1760313033943,-1122.11685327,0.0002576,2]
[391086230,1760313033952,-500.0,0.000258,2]
[391086231,1760313033961,-500.0,0.000258,2]
[391086232,1760313033970,-500.0,0.000258,2]
[391086233,1760313033983,-500.0,0.000258,2]
[391086234,1760313033992,-500.0,0.000258,2]
[391086235,1760313034002,-500.0,0.000258,2]
[391086236,1760313034011,-500.0,0.00025841,2]
[391086237,1760313034022,-500.0,0.00025841,2]
[391086238,1760313034031,-500.0,0.00025841,2]
[391086239,1760313034040,-500.0,0.00025841,2]
[391086240,1760313034049,-500.0,0.00025841,2]
[391086241,1760313034061,-500.0,0.00025841,2]
[391086242,1760313034070,-500.0,0.00025841,2]
[391086243,1760313034080,-500.0,0.00025841,2]
[391086244,1760313034089,-400.0,0.00025841,2]
[391086245,1760313034099,-500.0,0.00025841,2]
[391086246,1760313034108,-500.0,0.00025841,2]
[391086247,1760313034118,-500.0,0.00025841,2]
[391086248,1760313034128,-500.0,0.00025841,2]
[391086249,1760313034137,-500.0,0.00025841,2]
[391086250,1760313034147,-500.0,0.00025841,2]
[391086251,1760313034156,-500.0,0.00025841,2]
[391086252,1760313034166,-500.0,0.00025841,2]
[391086253,1760313034175,-500.0,0.00025841,2]
[391086254,1760313034186,-500.0,0.00025841,2]
[391086255,1760313034197,-500.0,0.00025841,2]
[391086256,1760313034207,-500.0,0.00025841,2]
[391086257,1760313034216,-500.0,0.00025841,2]
[391086258,1760313034226,-500.0,0.00025841,2]
[391086259,1760313034235,-500.0,0.00025841,2]
[391086260,1760313034244,-500.0,0.00025841,2]
[391086261,1760313034255,-500.0,0.00025841,2]
[391086262,1760313034264,-500.0,0.00025841,2]
[391086263,1760313034273,-500.0,0.00025841,2]
[391086264,1760313034283,-258.87515879,0.00025841,2]
[391086265,1760313034292,-500.0,0.00025841,2]
[391086266,1760313034302,-500.0,0.00025841,2]
[391086267,1760313034311,-500.0,0.00025841,2]
[391086268,1760313034320,-500.0,0.00025841,2]
[391086269,1760313034329,-500.0,0.00025841,2]
[391086270,1760313034339,-500.0,0.00025841,2]
[391086271,1760313034348,-1266.0,0.00025842,2]
[391086272,1760313034357,-749.0,0.00025842,2]
[391086273,1760313034367,-3405.0,0.00025842,2]
[391086274,1760313034376,-2048.0,0.00025842,2]
[391086275,1760313034386,-1587.0,0.00025842,2]
[391086276,1760313034395,-571.0,0.00025842,2]
[391086277,1760313034404,-1309.0,0.00025842,2]
[391086278,1760313034413,-604.0,0.00025842,2]
[391086279,1760313034422,-901.0,0.00025842,2]
[391086280,1760313034433,-2545.0,0.00025842,2]
[391086281,1760313034443,-816.0,0.00025842,2]
[391086282,1760313034452,-772.0,0.00025842,2]
[391086283,1760313034461,-150.0,0.00025842,2]
[391086284,1760313034470,-2329.57,0.00025842,2]
[391086285,1760313034480,-4120.0,0.00025842,2]
[391086286,1760313034489,-500.0,0.00026287,7]
[391086287,1760313034498,-500.0,0.00026325,2]
[391086288,1760313034507,-1000.0,0.00026348,2]
[391086289,1760313034516,-1000.0,0.00026348,2]
[391086290,1760313034525,-1000.0,0.00026544,2]
[391086291,1760313034535,-500.0,0.00026614,7]
[391086292,1760313034543,-336.59,0.00026676,2]
[391086293,1760313034553,-163.33,0.00026885,2]
[391086294,1760313034562,-600.0,0.00027397,2]
[391086295,1760313034571,-512.98600843,0.00027397,2]
[391086296,1760313034579,-548.97578703,0.00027466,7]
[391086297,1760313034588,-479.22713937,0.00027498,7]
[391086298,1760313034597,-958.45427874,0.00027498,7]
[391086299,1760313034606,-1437.68141811,0.00027498,7]
[391086300,1760313034615,-2396.13569685,0.00027498,7]
[391086301,1760313034624,-2875.36283622,0.00027498,7]
[391086302,1760313034637,-3833.81711496,0.00027498,7]
[391086303,1760313034646,-4313.04425433,0.00027498,7]
[391086304,1760313034656,-4792.2713937,0.00027498,7]
[391086305,1760313034665,-5271.49853307,0.00027498,7]
[391086306,1760313034674,-5750.72567244,0.00027498,7]
[391086307,1760313034684,-1916.90855748,0.00027498,7]
[391086308,1760313034694,-7188.40709055,0.00027498,7]
[391086309,1760313034704,-6229.95281181,0.00027498,7]
[391086310,1760313034713,-6709.17995118,0.00027498,7]
[391086311,1760313034723,-3354.58997559,0.00027498,7]
[391086312,1760313034732,-500.0,0.000275,5]
[391086313,1760313034743,-500.0,0.000275,5]
[391086314,1760313034753,-500.0,0.000275,5]
[391086315,1760313034762,-500.0,0.000275,5]
[391086316,1760313034771,-1000.0,0.00027503,2]
[391086317,1760313034781,-2594.74,0.00027681,30]
[391086318,1760313034792,-150.0,0.00027945,14]
[391086319,1760313034802,-600.0,0.00027945,2]
[391086320,1760313034812,-151.0,0.00028,2]
[391086321,1760313034822,-500.0,0.00028048,5]
[391086322,1760313034832,-7667.63422992,0.00028137,9]
[391086323,1760313034841,-2000.0,0.000282,2]
[391086324,1760313034851,-442.0,0.000282,2]
[391086325,1760313034860,-2245.93374673,0.00028362,2]
[391086326,1760313034874,-542.00606337,0.00028362,2]
[391086327,1760313034885,-1002.36644326,0.0002839,2]
[391086328,1760313034894,-613.45504471,0.00028459,2]
[391086329,1760313034906,-2174.48476537,0.00028459,2]
[391086330,1760313034917,-1000.0,0.00028462,2]
[391086331,1760313034927,-600.0,0.00028493,2]
[391086332,1760313034937,-300.0,0.000285,7]
[391086333,1760313034946,-500.0,0.00028517,7]
[391086334,1760313034955,-156.41463103,0.00028552,2]
[391086335,1760313034971,-1134.6,0.00028552,2]
[391086336,1760313037982,-151.0,0.00025838,7]
[391086337,1760313037992,-622.0,0.00025842,2]
[391086338,1760313038002,-1781.98536897,0.00028552,2]
[391086339,1760313038011,-2787.93981008,0.00028556,2]
[391086340,1760313038022,-462.66,0.00028632,2]
[391086341,1760313038032,-336.14,0.00028632,2]
[391086342,1760313038041,-500.0,0.00028643,7]
[391086343,1760313038053,-2787.93981008,0.00028653,2]
[391086344,1760313038063,-500.0,0.00028719,120]
[391086345,1760313038072,-168.0,0.00028747,2]
[391086346,1760313038082,-1940.31098163,0.00028748,8]
[391086347,1760313038091,-340.02402924,0.0002875,2]
[391086348,1760313038103,-2447.91578084,0.0002875,2]
[391086349,1760313038113,-1027.86989314,0.00028756,8]
[391086350,1760313038122,-3744.92833493,0.00028761,8]
[391086351,1760313038133,-571.0398,0.00028761,8]
[391086352,1760313038164,-14061.56518338,0.00028761,8]
[391086353,1760313038174,-1940.31098163,0.00028764,8]
[391086354,1760313038186,-304.56186438,0.00028779,8]
[391086355,1760313038196,-304.56186438,0.00028785,8]
[391086356,1760313038205,-304.56186438,0.00028788,8]
[391086357,1760313038214,-1027.86989314,0.00028799,8]
[391086358,1760313038224,-1606.45707978,0.000288,120]
[391086359,1760313038234,-5000.0,0.000288,2]
[391086360,1760313038243,-18377.53331831,0.00028819,8]
[391086361,1760313038253,-1940.31098163,0.00028822,8]
[391086362,1760313038262,-8651.36544508,0.0002884,8]
[391086363,1760313038273,-527.046,0.00028842,2]
[391086364,1760313038283,-772.0,0.00028842,2]
[391086365,1760313038292,-2787.93981008,0.00028847,2]
[391086366,1760313038302,-18377.53331831,0.00028863,8]
[391086367,1760313038311,-8651.36544508,0.00028867,8]
[391086368,1760313038321,-8651.36544508,0.00028874,8]
[391086369,1760313038331,-1027.86989314,0.00028882,8]
[391086370,1760313038340,-2500.0,0.000289,2]
[391086371,1760313038349,-168.0,0.00028906,2]
[391086372,1760313038358,-2787.93981008,0.00028944,2]
[391086373,1760313038367,-354.44359,0.0002898,2]
[391086374,1760313038377,-3000.0,0.00029,120]
[391086375,1760313038387,-35362.12012845,0.00029,2]
[391086376,1760313038396,-30783.9134577,0.0002904,3]
[391086378,1760313038405,-2787.93981008,0.00029041,2]
[391086380,1760313038415,-1444.0,0.00029041,120]
[391086382,1760313038424,-600.0,0.00029041,2]
[391086384,1760313038434,-5066.5928215,0.00029053,2]
[391086386,1760313038444,-8146.86136929,0.00029062,11]
[391086388,1760313038453,-5000.0,0.00029082,2]
[391086389,1760313038463,-3000.0,0.000291,120]
[391086390,1760313038472,-383.04000832,0.00029109,30]
[391086391,1760313038482,-1600.0,0.00029109,120]
[391086392,1760313038491,-30783.9134577,0.00029122,3]
[391086393,1760313038500,-61567.8269154,0.00029137,3]
[391086394,1760313038510,-2787.93981008,0.00029138,2]
[391086395,1760313038520,-123424.0893421,0.00029147,2]
[391086396,1760313038529,-151.0,0.00029147,30]
[391086397,1760313038539,-154.103635,0.00029147,30]
[391086398,1760313038548,-151.0,0.00029147,30]
[391086399,1760313038558,-151.0,0.00029147,30]
[391086400,1760313038567,-151.0,0.00029147,30]
[391086401,1760313038576,-248.290199,0.00029147,7]
[391086402,1760313038585,-151.0,0.00029147,30]
[391086403,1760313038595,-151.0,0.00029147,30]
[391086404,1760313038606,-151.0,0.00029147,30]
[391086405,1760313038615,-151.0,0.00029147,30]
[391086406,1760313038625,-151.0,0.00029147,30]
[391086407,1760313038634,-151.0,0.00029147,30]
[391086408,1760313038644,-151.0,0.00029147,30]
[391086409,1760313038653,-161.084457,0.00029147,30]
[391086410,1760313038662,-151.0,0.00029147,30]
[391086411,1760313038671,-151.0,0.00029147,30]
[391086412,1760313038681,-151.0,0.00029147,30]
[391086413,1760313038691,-269.7972,0.00029153,2]
[391086414,1760313038700,-602.02247122,0.00029165,2]
[391086415,1760313038709,-300.0,0.00029172,14]
[391086416,1760313038719,-300.0,0.00029172,14]
[391086417,1760313038729,-300.0,0.00029172,14]
[391086418,1760313038740,-300.0,0.00029172,14]
[391086419,1760313038749,-300.0,0.00029172,14]
[391086420,1760313038758,-300.0,0.00029172,14]
[391086421,1760313038767,-300.0,0.00029172,14]
[391086422,1760313038777,-300.0,0.00029172,14]
[391086423,1760313038786,-300.0,0.00029172,14]
[391086424,1760313038795,-300.0,0.00029172,14]
[391086425,1760313038806,-300.0,0.00029172,14]
[391086426,1760313038816,-300.0,0.00029172,14]
[391086427,1760313038825,-300.0,0.00029172,14]
[391086428,1760313038834,-300.0,0.00029172,14]
[391086429,1760313038843,-300.0,0.00029172,14]
[391086430,1760313038853,-300.0,0.00029172,14]
[391086431,1760313038862,-300.0,0.00029172,14]
[391086432,1760313038871,-300.0,0.00029172,14]
[391086433,1760313038881,-300.0,0.00029172,14]
[391086434,1760313038890,-300.0,0.00029172,14]
[391086435,1760313038899,-340.138691,0.00029172,14]
[391086436,1760313038908,-172.63530329,0.00029173,5]
[391086437,1760313038918,-500.0,0.00029173,5]
[391086438,1760313038926,-500.0,0.00029173,3]
[391086439,1760313038935,-163.56190378,0.00029173,5]
[391086440,1760313038944,-150.0,0.00029173,5]
[391086441,1760313038953,-500.0,0.00029173,5]
[391086442,1760313038962,-500.0,0.00029173,5]
[391086443,1760313038972,-500.0,0.00029173,5]
[391086444,1760313038984,-1124.0,0.00029179,5]
[391086445,1760313038993,-427.97248832,0.00029182,2]
[391086446,1760313039002,-658.99393586,0.00029182,2]
[391086447,1760313039011,-30783.9134577,0.00029205,3]
[391086448,1760313039020,-2787.93981008,0.00029235,2]
[391086449,1760313039031,-1384.053095,0.00029236,2]
[391086450,1760313039042,-24129.1599473,0.00029238,3]
[391086451,1760313039051,-500.0,0.00029248,10]
[391086452,1760313039061,-500.0,0.00029248,10]
[391086453,1760313039069,-500.0,0.00029249,120]
[391086454,1760313039079,-150.68,0.00029251,2]
[391086455,1760313039088,-150.68,0.00029251,2]
[391086456,1760313039097,-150.68,0.00029252,2]
[391086457,1760313039106,-150.68,0.00029252,2]
[391086458,1760313039115,-30783.9134577,0.00029253,3]
[391086459,1760313039124,-500.0,0.0002926,120]
[391086460,1760313039133,-174790.97456611,0.00029261,8]
[391086461,1760313039142,-151.0,0.00029261,30]
[391086462,1760313039151,-152.648048,0.00029261,30]
[391086463,1760313039160,-151.0,0.00029261,30]
[391086464,1760313039169,-151.0,0.00029261,30]
[391086465,1760313039178,-184.788242,0.00029261,30]
[391086466,1760313039187,-151.0,0.00029261,30]
[391086467,1760313039196,-151.0,0.00029261,30]
[391086468,1760313039206,-151.0,0.00029261,30]
[391086469,1760313039215,-157.664249,0.00029261,30]
[391086470,1760313039224,-151.0,0.00029261,30]
[391086471,1760313039234,-151.0,0.00029261,30]
[391086472,1760313039243,-92351.7403731,0.00029261,3]
[391086473,1760313039254,-96516.6397892,0.00029261,3]
[391086474,1760313039263,-30783.9134577,0.00029262,3]
[391086475,1760313039273,-48258.3198946,0.00029262,3]
[391086476,1760313039283,-30783.9134577,0.00029262,3]
[391086477,1760313039293,-24129.1599473,0.00029262,3]
[391086478,1760313039302,-150.68,0.00029262,2]
[391086479,1760313039311,-30783.9134577,0.00029263,3]
[391086480,1760313039321,-24129.1599473,0.00029263,3]
[391086481,1760313039330,-150.68,0.00029263,2]
[391086482,1760313039340,-150.68,0.00029263,2]
[391086483,1760313039349,-1000.0,0.00029263,11]
[391086484,1760313039656,-1000.0,0.00029263,11]
[391086485,1760313039666,-1000.0,0.00029263,11]
[391086486,1760313039676,-1000.0,0.00029263,11]
[391086487,1760313039687,-1000.0,0.00029263,11]
[391086488,1760313039696,-1000.0,0.00029263,11]
[391086489,1760313039705,-1000.0,0.00029263,11]
[391086490,1760313039714,-1000.0,0.00029263,11]
[391086491,1760313039724,-151.0,0.00029263,30]
[391086492,1760313039733,-284.141797,0.00029263,30]
[391086493,1760313039743,-152.998969,0.00029263,30]
[391086494,1760313039754,-151.0,0.00029263,30]
[391086495,1760313039763,-151.0,0.00029263,30]
[391086496,1760313039772,-151.0,0.00029263,30]
[391086497,1760313039782,-151.0,0.00029263,30]
[391086498,1760313039791,-151.0,0.00029263,30]
[391086499,1760313039801,-151.0,0.00029263,10]
[391086500,1760313039810,-151.0,0.00029263,30]
[391086501,1760313039819,-151.0,0.00029263,30]
[391086502,1760313039828,-151.0,0.00029263,30]
[391086503,1760313039838,-231.705788,0.00029263,30]
[391086504,1760313039849,-151.0,0.00029263,30]
[391086505,1760313039859,-151.0,0.00029263,30]
[391086506,1760313039871,-151.0,0.00029263,30]
[391086507,1760313039880,-151.0,0.00029263,30]
[391086508,1760313039889,-151.0,0.00029263,30]
[391086509,1760313039900,-152.629745,0.00029263,30]
[391086510,1760313039909,-151.0,0.00029263,30]
[391086511,1760313039918,-151.0,0.00029263,30]
[391086512,1760313039927,-151.0,0.00029263,30]
[391086513,1760313039937,-151.0,0.00029263,30]
[391086514,1760313039946,-183.885862,0.00029263,30]
[391086515,1760313039955,-151.0,0.00029263,2]
[391086516,1760313039964,-151.0,0.00029263,30]
[391086517,1760313039973,-151.0,0.00029263,30]
[391086518,1760313039986,-151.0,0.00029263,30]
[391086519,1760313039995,-154.706527,0.00029263,30]
[391086520,1760313040004,-151.0,0.00029263,30]
[391086521,1760313040014,-288.248107,0.00029263,30]
[391086522,1760313040025,-153.062896,0.00029263,30]
[391086523,1760313040034,-151.0,0.00029263,30]
[391086524,1760313040043,-231.98460677,0.00029269,2]
[391086525,1760313040053,-155.59616077,0.00029269,2]
[391086526,1760313040062,-267.475403,0.0002927,30]
[391086527,1760313040072,-151.0,0.0002927,30]
[391086528,1760313040081,-151.0,0.0002927,30]
[391086529,1760313040091,-151.0,0.0002927,30]
[391086530,1760313040101,-151.0,0.0002927,30]
[391086531,1760313040111,-151.0,0.0002927,30]
[391086532,1760313040121,-151.0,0.0002927,30]
[391086533,1760313040131,-151.0,0.00029271,30]
[391086534,1760313040140,-151.0,0.00029271,30]
[391086535,1760313040149,-151.0,0.00029271,30]
[391086536,1760313040158,-151.0,0.00029271,30]
[391086537,1760313040167,-151.0,0.00029271,30]
[391086538,1760313040176,-151.0,0.00029271,30]
[391086539,1760313040185,-151.0,0.00029271,30]
[391086540,1760313040194,-159.024303,0.00029271,30]
[391086541,1760313040204,-151.0,0.00029271,2]
[391086542,1760313040214,-151.0,0.00029271,30]
[391086543,1760313040223,-261.41323,0.00029271,30]